[Event "Fast Chess"]
[Site "ChessKid.com"]
[Date "2020.03.26"]
[Round "2"]
[White "Nagel, Lucas"]
[Black "Gross, Lukas"]
[Result "0-1"]
[ECO "B06"]
[WhiteElo "899"]
[BlackElo "1055"]
[PlyCount "106"]
[EventDate "2020.??.??"]
[TimeControl "900"]
[WhiteClock "0:08:06"]
[BlackClock "0:10:47"]

1. e4 {[%emt 0:00:01]} g6 {[%emt 0:00:02]} 2. Nf3 {[%emt 0:00:03]} Bg7 {
[%emt 0:00:06]} 3. Be2 {[%emt 0:00:01]} Nh6 {[%emt 0:00:02]} 4. d3 {[%emt 0:00:
02]} O-O {[%emt 0:00:02]} 5. Bf4 {[%emt 0:00:04]} Na6 {[%emt 0:00:27]} 6. Nc3 {
[%emt 0:00:02]} d6 {[%emt 0:00:09]} 7. g3 {[%emt 0:00:04]} e5 {[%emt 0:00:02]}
8. Bd2 {[%emt 0:00:04]} b6 {[%emt 0:00:14]} 9. d4 {[%emt 0:00:02]} Bb7 {
[%emt 0:00:04]} 10. dxe5 {[%emt 0:00:06]} dxe5 {[%emt 0:00:04]} 11. Nxe5 {
[%emt 0:00:05]} Bxe5 {[%emt 0:00:03]} 12. Nb1 {[%emt 0:00:10]} Bxb2 {[%emt 0:
00:05]} 13. Bc3 {[%emt 0:00:11]} Bxa1 {[%emt 0:00:05]} 14. Bxa1 {[%emt 0:00:02]
} Qe8 {[%emt 0:00:09]} 15. O-O {[%emt 0:00:13]} Rd8 {[%emt 0:00:02]} 16. Qe1 {
[%emt 0:00:03]} Qxe4 {[%emt 0:00:13]} 17. Bf6 {[%emt 0:00:10]} Rd6 {[%emt 0:00:
17]} 18. Be7 {[%emt 0:00:05]} Re8 {[%emt 0:00:08]} 19. Bxd6 {[%emt 0:00:03]}
Rc8 {[%emt 0:00:06]} 20. Bf4 {[%emt 0:00:10]} Qxc2 {[%emt 0:00:11]} 21. Nd2 {
[%emt 0:00:13]} Re8 {[%emt 0:00:05]} 22. Bb5 {[%emt 0:00:12]} Rxe1 {[%emt 0:00:
03]} 23. Rxe1 {[%emt 0:00:03]} Ng4 {[%emt 0:00:20]} 24. Be5 {[%emt 0:00:05]}
Qxd2 {[%emt 0:00:03]} 25. Re4 {[%emt 0:00:06]} Nxe5 {[%emt 0:00:11]} 26. Rxe5 {
[%emt 0:00:04]} Qd8 {[%emt 0:00:06]} 27. Re1 {[%emt 0:00:05]} Qd2 {[%emt 0:00:
07]} 28. Rf1 {[%emt 0:00:03]} Qxa2 {[%emt 0:00:11]} 29. Bd7 {[%emt 0:00:10]}
Nc5 {[%emt 0:00:16]} 30. Bh3 {[%emt 0:00:03]} f5 {[%emt 0:00:28]} 31. Bg2 {
[%emt 0:00:02]} Bxg2 {[%emt 0:00:06]} 32. Kxg2 {[%emt 0:00:02]} Qd5+ {[%emt 0:
00:07]} 33. Kg1 {[%emt 0:00:02]} Ne4 {[%emt 0:00:15]} 34. f3 {[%emt 0:00:03]}
Ng5 {[%emt 0:00:10]} 35. h4 {[%emt 0:00:03]} Nh3+ {[%emt 0:00:04]} 36. Kh2 {
[%emt 0:00:03]} Ng5 {[%emt 0:00:21]} 37. hxg5 {[%emt 0:00:03]} Qd3 {[%emt 0:00:
05]} 38. Rg1 {[%emt 0:00:04]} a5 {[%emt 0:00:04]} 39. f4 {[%emt 0:00:04]} b5 {
[%emt 0:00:08]} 40. Rg2 {[%emt 0:00:02]} a4 {[%emt 0:00:09]} 41. Kh3 {[%emt 0:
00:03]} b4 {[%emt 0:00:03]} 42. Kh2 {[%emt 0:00:21]} b3 {[%emt 0:00:05]} 43.
Kh3 {[%emt 0:00:02]} a3 {[%emt 0:00:05]} 44. Kh2 {[%emt 0:00:03]} Qc3 {[%emt 0:
00:02]} 45. Kh3 {[%emt 0:00:06]} b2 {[%emt 0:00:02]} 46. Rh2 {[%emt 0:00:04]}
b1=Q {[%emt 0:00:03]} 47. Kh4 {[%emt 0:00:03]} Qbb2 {[%emt 0:00:04]} 48. Rh3 {
[%emt 0:00:02]} Qf3 {[%emt 0:00:22]} 49. g4 {[%emt 0:00:03]} Qxh3+ {[%emt 0:00:
08]} 50. Kxh3 {[%emt 0:00:02]} a2 {[%emt 0:00:01]} 51. Kh4 {[%emt 0:00:03]}
a1=Q {[%emt 0:00:03]} 52. Kh3 {[%emt 0:00:08]} Qb3+ {[%emt 0:00:04]} 53. Kh4 {
[%emt 0:00:01]} Qh1# {[%emt 0:00:03] RosyPopularArm won by checkmate} 0-1

[Event "Fast Chess"]
[Site "ChessKid.com"]
[Date "2020.03.26"]
[Round "2"]
[White "Georgiev, Maximilian"]
[Black "Dai, Lana"]
[Result "1-0"]
[ECO "B00"]
[WhiteElo "1178"]
[BlackElo "1015"]
[PlyCount "93"]
[EventDate "2020.??.??"]
[TimeControl "900"]
[WhiteClock "0:05:51"]
[BlackClock "0:10:12"]

1. e4 {[%emt 0:00:00]} e6 {[%emt 0:00:01]} 2. Nf3 {[%emt 0:00:02]} Nc6 {
[%emt 0:00:07]} 3. Nc3 {[%emt 0:00:03]} Bc5 {[%emt 0:00:09]} 4. Bb5 {[%emt 0:
00:03]} e5 {[%emt 0:00:04]} 5. d3 {[%emt 0:00:05]} h6 {[%emt 0:00:08]} 6. Bxc6
{[%emt 0:00:04]} dxc6 {[%emt 0:00:03]} 7. Nxe5 {[%emt 0:00:02]} Nf6 {[%emt 0:
00:09]} 8. Nf3 {[%emt 0:00:06]} Bg4 {[%emt 0:00:04]} 9. O-O {[%emt 0:00:07]}
Nh5 {[%emt 0:00:25]} 10. h3 {[%emt 0:00:06]} Bxf3 {[%emt 0:00:05]} 11. Qxf3 {
[%emt 0:00:04]} Nf6 {[%emt 0:00:25]} 12. Na4 {[%emt 0:00:06]} Bd4 {[%emt 0:00:
08]} 13. c3 {[%emt 0:00:02]} Be5 {[%emt 0:00:11]} 14. Nc5 {[%emt 0:00:03]} Rb8
{[%emt 0:00:26]} 15. Be3 {[%emt 0:00:10]} Qd6 {[%emt 0:00:10]} 16. g3 {[%emt 0:
00:22]} b6 {[%emt 0:00:10]} 17. Na6 {[%emt 0:00:04]} Rb7 {[%emt 0:00:06]} 18.
a4 {[%emt 0:00:07]} c5 {[%emt 0:00:14]} 19. Qe2 {[%emt 0:00:19]} c6 {[%emt 0:
00:20]} 20. Rad1 {[%emt 0:00:26]} b5 {[%emt 0:00:16]} 21. axb5 {[%emt 0:00:08]}
Rxb5 {[%emt 0:00:07]} 22. d4 {[%emt 0:00:11]} cxd4 {[%emt 0:00:04]} 23. cxd4 {
[%emt 0:00:03]} Bxd4 {[%emt 0:00:40]} 24. Bxd4 {[%emt 0:00:03]} Qe7 {[%emt 0:
00:27]} 25. Kg2 {[%emt 0:00:23]} Nxe4 {[%emt 0:00:15]} 26. Bxg7 {[%emt 0:00:08]
} Rh7 {[%emt 0:00:08]} 27. Bc3 {[%emt 0:00:17]} h5 {[%emt 0:00:42]} 28. Bd4 {
[%emt 0:00:06]} Rh6 {[%emt 0:00:56]} 29. Be3 {[%emt 0:00:12]} Rh7 {[%emt 0:00:
23]} 30. Bd4 {[%emt 0:00:03]} Rd5 {[%emt 0:00:10]} 31. Bf6 {[%emt 0:00:07]} Qe6
{[%emt 0:00:13]} 32. Nc7+ {[%emt 0:00:10]} Kd7 {[%emt 0:00:10]} 33. Nxe6 {
[%emt 0:00:01]} Kxe6 {[%emt 0:00:03]} 34. Rxd5 {[%emt 0:00:04]} Kxd5 {[%emt 0:
00:13]} 35. Qd3+ {[%emt 0:00:05]} Ke6 {[%emt 0:00:07]} 36. Qxe4+ {[%emt 0:00:
02]} Kxf6 {[%emt 0:00:07]} 37. Qxh7 {[%emt 0:00:02]} Kg5 {[%emt 0:00:05]} 38.
Qxf7 {[%emt 0:00:03]} h4 {[%emt 0:00:03]} 39. gxh4+ {[%emt 0:00:03]} Kxh4 {
[%emt 0:00:02]} 40. Qf4+ {[%emt 0:00:02]} Kh5 {[%emt 0:00:05]} 41. Re1 {
[%emt 0:00:01]} Kg6 {[%emt 0:00:05]} 42. Re6+ {[%emt 0:00:02]} Kg7 {[%emt 0:00:
02]} 43. Qf6+ {[%emt 0:00:06]} Kg8 {[%emt 0:00:08]} 44. Re8+ {[%emt 0:00:03]}
Kh7 {[%emt 0:00:04]} 45. Re7+ {[%emt 0:00:01]} Kg8 {[%emt 0:00:04]} 46. Qg6+ {
[%emt 0:00:01]} Kf8 {[%emt 0:00:04]} 47. Qf7# {[%emt 0:00:01] TallSnazzyBall
won by checkmate} 1-0

[Event "Fast Chess"]
[Site "ChessKid.com"]
[Date "2020.03.26"]
[Round "3"]
[White "Gross, Lukas"]
[Black "Rosenkranz, Benjamin"]
[Result "0-1"]
[ECO "A00"]
[WhiteElo "1050"]
[BlackElo "1171"]
[PlyCount "106"]
[EventDate "2020.??.??"]
[TimeControl "900"]
[WhiteClock "0:07:42"]
[BlackClock "0:07:31"]

1. g3 {[%emt 0:00:00]} e5 {[%emt 0:00:04]} 2. Bg2 {[%emt 0:00:02]} Nc6 {
[%emt 0:00:08]} 3. Nh3 {[%emt 0:00:02]} d6 {[%emt 0:00:05]} 4. f4 {[%emt 0:00:
04]} exf4 {[%emt 0:00:10]} 5. gxf4 {[%emt 0:00:03]} Nf6 {[%emt 0:00:07]} 6. O-O
{[%emt 0:00:09]} Be6 {[%emt 0:00:05]} 7. e3 {[%emt 0:00:22]} Qd7 {[%emt 0:00:
04]} 8. c3 {[%emt 0:00:03]} Bxh3 {[%emt 0:00:04]} 9. Bxh3 {[%emt 0:00:04]} Qxh3
{[%emt 0:00:05]} 10. Rf3 {[%emt 0:00:01]} Qd7 {[%emt 0:00:08]} 11. d3 {[%emt 0:
00:05]} O-O-O {[%emt 0:00:09]} 12. d4 {[%emt 0:00:02]} Qg4+ {[%emt 0:00:12]}
13. Kh1 {[%emt 0:00:10]} d5 {[%emt 0:00:07]} 14. h3 {[%emt 0:00:04]} Qe6 {
[%emt 0:00:12]} 15. Na3 {[%emt 0:00:16]} Bxa3 {[%emt 0:00:06]} 16. bxa3 {
[%emt 0:00:03]} Ne4 {[%emt 0:00:14]} 17. a4 {[%emt 0:00:10]} Nxc3 {[%emt 0:00:
05]} 18. Qc2 {[%emt 0:00:07]} Ne4 {[%emt 0:00:11]} 19. Qd1 {[%emt 0:00:08]} Nb4
{[%emt 0:00:21]} 20. Ba3 {[%emt 0:00:07]} Nc6 {[%emt 0:00:14]} 21. Bb2 {
[%emt 0:00:23]} Qg6 {[%emt 0:00:24]} 22. Kh2 {[%emt 0:00:17]} Qh5 {[%emt 0:00:
09]} 23. f5 {[%emt 0:00:09]} Nd6 {[%emt 0:00:26]} 24. Rb1 {[%emt 0:00:41]} Nxf5
{[%emt 0:00:05]} 25. Qc2 {[%emt 0:00:18]} Nh4 {[%emt 0:00:12]} 26. Rf4 {
[%emt 0:00:18]} Nf3+ {[%emt 0:00:19]} 27. Kg3 {[%emt 0:00:08]} Ng5 {[%emt 0:00:
08]} 28. Rh4 {[%emt 0:00:07]} Qf3+ {[%emt 0:00:15]} 29. Kh2 {[%emt 0:00:13]}
Qxe3 {[%emt 0:00:07]} 30. Rg4 {[%emt 0:00:20]} Nf3+ {[%emt 0:00:09]} 31. Kg2 {
[%emt 0:00:11]} Qd2+ {[%emt 0:00:06]} 32. Qxd2 {[%emt 0:00:09]} Nxd2 {[%emt 0:
00:07]} 33. Rd1 {[%emt 0:00:06]} Nc4 {[%emt 0:00:06]} 34. Bc3 {[%emt 0:00:05]}
Ne3+ {[%emt 0:00:04]} 35. Kf2 {[%emt 0:00:12]} Nxd1+ {[%emt 0:00:03]} 36. Kf3 {
[%emt 0:00:10]} Nxc3 {[%emt 0:00:03]} 37. Kg3 {[%emt 0:00:09]} Nxa2 {[%emt 0:
00:04]} 38. Rxg7 {[%emt 0:00:09]} Rdf8 {[%emt 0:00:13]} 39. Kh4 {[%emt 0:00:05]
} Nc3 {[%emt 0:00:05]} 40. Kh5 {[%emt 0:00:09]} Ne4 {[%emt 0:00:05]} 41. Kh6 {
[%emt 0:00:03]} a5 {[%emt 0:00:16]} 42. Kh5 {[%emt 0:00:08]} Nxd4 {[%emt 0:00:
05]} 43. Rg4 {[%emt 0:00:06]} b5 {[%emt 0:00:06]} 44. axb5 {[%emt 0:00:04]} a4
{[%emt 0:00:03]} 45. Rg1 {[%emt 0:00:05]} Nb3 {[%emt 0:00:05]} 46. Rb1 {
[%emt 0:00:09]} Nc3 {[%emt 0:00:04]} 47. Rh1 {[%emt 0:00:06]} a3 {[%emt 0:00:
05]} 48. Rg1 {[%emt 0:00:09]} a2 {[%emt 0:00:03]} 49. Rg3 {[%emt 0:00:03]} a1=Q
{[%emt 0:00:05]} 50. Rg4 {[%emt 0:00:04]} Nxb5 {[%emt 0:00:05]} 51. Rb4 {
[%emt 0:00:06]} Rhg8 {[%emt 0:00:11]} 52. Rxb3 {[%emt 0:00:03]} Qg7 {[%emt 0:
00:05]} 53. Rxb5 {[%emt 0:00:04]} Qg5# {[%emt 0:00:04] FineBeamingStage won by
checkmate} 0-1

[Event "Fast Chess"]
[Site "ChessKid.com"]
[Date "2020.03.26"]
[Round "3"]
[White "Nagel, Lucas"]
[Black "Georgiev, Maximilian"]
[Result "0-1"]
[ECO "C20"]
[WhiteElo "886"]
[BlackElo "1185"]
[PlyCount "36"]
[EventDate "2020.??.??"]
[TimeControl "900"]
[WhiteClock "0:13:56"]
[BlackClock "0:13:12"]

1. e4 {[%emt 0:00:13]} e5 {[%emt 0:00:02]} 2. Be2 {[%emt 0:00:03]} Nc6 {
[%emt 0:00:02]} 3. c3 {[%emt 0:00:08]} Nf6 {[%emt 0:00:04]} 4. d3 {[%emt 0:00:
00]} Bc5 {[%emt 0:00:05]} 5. Bg5 {[%emt 0:00:05]} Be7 {[%emt 0:00:05]} 6. Nd2 {
[%emt 0:00:02]} h6 {[%emt 0:00:02]} 7. Bf4 {[%emt 0:00:04]} exf4 {[%emt 0:00:
03]} 8. g3 {[%emt 0:00:04]} fxg3 {[%emt 0:00:02]} 9. hxg3 {[%emt 0:00:02]} O-O
{[%emt 0:00:03]} 10. Ndf3 {[%emt 0:00:09]} Bc5 {[%emt 0:00:06]} 11. Nd2 {
[%emt 0:00:05]} d6 {[%emt 0:00:03]} 12. Nc4 {[%emt 0:00:03]} Bg4 {[%emt 0:00:
06]} 13. Bxg4 {[%emt 0:00:03]} Nxg4 {[%emt 0:00:03]} 14. Nf3 {[%emt 0:00:04]}
Nxf2 {[%emt 0:00:04]} 15. Kf1 {[%emt 0:00:19]} Nxd1 {[%emt 0:00:02]} 16. Rxd1 {
[%emt 0:00:04]} Qf6 {[%emt 0:00:08]} 17. g4 {[%emt 0:00:06]} Qxf3+ {[%emt 0:00:
03]} 18. Ke1 {[%emt 0:00:14]} Qf2# {[%emt 0:00:02] TallSnazzyBall won by
checkmate} 0-1

[Event "Fast Chess"]
[Site "ChessKid.com"]
[Date "2020.03.27"]
[Round "1"]
[White "Sasse, Gabriel"]
[Black "Horvath, Alexander"]
[Result "1-0"]
[ECO "C42"]
[WhiteElo "1176"]
[BlackElo "1324"]
[PlyCount "33"]
[EventDate "2020.??.??"]
[TimeControl "900"]
[WhiteClock "0:13:08"]
[BlackClock "0:14:00"]

1. e4 {[%emt 0:00:00]} e5 {[%emt 0:00:03]} 2. Nf3 {[%emt 0:00:01]} Nf6 {
[%emt 0:00:03]} 3. Nxe5 {[%emt 0:00:03]} Qe7 {[%emt 0:00:03]} 4. Nf3 {[%emt 0:
00:04]} Nxe4 {[%emt 0:00:03]} 5. Be2 {[%emt 0:00:06]} d5 {[%emt 0:00:03]} 6. d3
{[%emt 0:00:03]} Nd6 {[%emt 0:00:07]} 7. O-O {[%emt 0:00:04]} Bg4 {[%emt 0:00:
10]} 8. Bg5 {[%emt 0:00:04]} f6 {[%emt 0:00:04]} 9. Bf4 {[%emt 0:00:03]} Bxf3 {
[%emt 0:00:18]} 10. Bxf3 {[%emt 0:00:02]} Nc6 {[%emt 0:00:09]} 11. Re1 {
[%emt 0:00:01]} Ne5 {[%emt 0:00:04]} 12. Bxe5 {[%emt 0:00:02]} fxe5 {[%emt 0:
00:02]} 13. Bxd5 {[%emt 0:00:02]} O-O-O {[%emt 0:00:04]} 14. Qg4+ {[%emt 0:00:
05]} Kb8 {[%emt 0:00:07]} 15. Qb4 {[%emt 0:00:05]} Qg5 {[%emt 0:00:14]} 16. c4
{[%emt 0:00:08]} Ne4 {[%emt 0:00:18]} 17. Qxb7# {[%emt 0:00:06] LimeFarActor
won by checkmate} 1-0

[Event "Fast Chess"]
[Site "ChessKid.com"]
[Date "2020.03.27"]
[Round "1"]
[White "Georgiev, Maximilian"]
[Black "Li, Tobias"]
[Result "0-1"]
[ECO "C55"]
[WhiteElo "1210"]
[BlackElo "992"]
[PlyCount "170"]
[EventDate "2020.??.??"]
[TimeControl "900"]
[WhiteClock "0:02:24"]
[BlackClock "0:04:37"]

1. e4 {[%emt 0:00:00]} e5 {[%emt 0:00:04]} 2. Nf3 {[%emt 0:00:01]} Nc6 {
[%emt 0:00:05]} 3. Bc4 {[%emt 0:00:03]} Bc5 {[%emt 0:00:07]} 4. Nc3 {[%emt 0:
00:06]} Nf6 {[%emt 0:00:05]} 5. Ng5 {[%emt 0:00:05]} O-O {[%emt 0:00:02]} 6.
O-O {[%emt 0:00:06]} h6 {[%emt 0:00:06]} 7. Nf3 {[%emt 0:00:02]} d5 {[%emt 0:
00:16]} 8. exd5 {[%emt 0:00:03]} Nb4 {[%emt 0:00:13]} 9. a3 {[%emt 0:00:05]}
Nbxd5 {[%emt 0:00:02]} 10. Nxd5 {[%emt 0:00:04]} Nxd5 {[%emt 0:00:02]} 11. Nxe5
{[%emt 0:00:05]} Nf6 {[%emt 0:00:10]} 12. Nf3 {[%emt 0:00:03]} Bg4 {[%emt 0:00:
14]} 13. Re1 {[%emt 0:00:03]} a6 {[%emt 0:00:08]} 14. d3 {[%emt 0:00:06]} b5 {
[%emt 0:00:03]} 15. Bb3 {[%emt 0:00:04]} Qd7 {[%emt 0:01:03]} 16. h3 {[%emt 0:
00:05]} Bh5 {[%emt 0:00:03]} 17. Ne5 {[%emt 0:00:11]} Qd4 {[%emt 0:00:20]} 18.
Qd2 {[%emt 0:00:06]} Rfe8 {[%emt 0:00:07]} 19. Nf3 {[%emt 0:00:08]} Rxe1+ {
[%emt 0:00:08]} 20. Qxe1 {[%emt 0:00:03]} Qd8 {[%emt 0:00:19]} 21. Nh2 {
[%emt 0:00:12]} c6 {[%emt 0:00:24]} 22. Be3 {[%emt 0:00:15]} Bd6 {[%emt 0:00:
09]} 23. a4 {[%emt 0:00:14]} Qc7 {[%emt 0:00:08]} 24. Nf1 {[%emt 0:00:07]} Re8
{[%emt 0:00:34]} 25. axb5 {[%emt 0:00:04]} cxb5 {[%emt 0:00:05]} 26. Rxa6 {
[%emt 0:00:10]} Bc5 {[%emt 0:00:13]} 27. Ra1 {[%emt 0:00:17]} Qb6 {[%emt 0:00:
09]} 28. Qd2 {[%emt 0:00:24]} Nh7 {[%emt 0:00:09]} 29. Bxc5 {[%emt 0:00:04]}
Qxc5 {[%emt 0:00:04]} 30. d4 {[%emt 0:00:04]} Qb6 {[%emt 0:00:11]} 31. Rd1 {
[%emt 0:00:37]} Bxd1 {[%emt 0:00:08]} 32. Qxd1 {[%emt 0:00:03]} Rd8 {[%emt 0:
00:27]} 33. c3 {[%emt 0:00:05]} Nf6 {[%emt 0:00:06]} 34. Qf3 {[%emt 0:00:16]}
b4 {[%emt 0:00:13]} 35. cxb4 {[%emt 0:00:03]} Qxb4 {[%emt 0:00:04]} 36. Bd1 {
[%emt 0:00:09]} Qxd4 {[%emt 0:00:11]} 37. Be2 {[%emt 0:00:31]} Qxb2 {[%emt 0:
00:14]} 38. Ng3 {[%emt 0:00:18]} Qe5 {[%emt 0:00:21]} 39. Qf5 {[%emt 0:00:22]}
Qxf5 {[%emt 0:00:18]} 40. Nxf5 {[%emt 0:00:02]} Re8 {[%emt 0:00:21]} 41. Bb5 {
[%emt 0:00:07]} Re5 {[%emt 0:00:04]} 42. Bd3 {[%emt 0:00:03]} Rd5 {[%emt 0:00:
11]} 43. Bc2 {[%emt 0:00:08]} Rd2 {[%emt 0:00:10]} 44. Ba4 {[%emt 0:00:09]} Ra2
{[%emt 0:00:14]} 45. Bb3 {[%emt 0:00:04]} Ra3 {[%emt 0:00:07]} 46. Bc2 {
[%emt 0:00:16]} Rc3 {[%emt 0:00:17]} 47. Ba4 {[%emt 0:00:10]} Kh7 {[%emt 0:00:
16]} 48. f4 {[%emt 0:00:12]} Rc4 {[%emt 0:00:09]} 49. Bb3 {[%emt 0:00:08]} Rxf4
{[%emt 0:00:04]} 50. Ng3 {[%emt 0:00:10]} Kg6 {[%emt 0:00:04]} 51. Bc2+ {
[%emt 0:00:04]} Kg5 {[%emt 0:00:09]} 52. Ne2 {[%emt 0:00:04]} Rc4 {[%emt 0:00:
11]} 53. Bd3 {[%emt 0:00:04]} Rc8 {[%emt 0:00:10]} 54. Ba6 {[%emt 0:00:08]} Rc6
{[%emt 0:00:06]} 55. Bb5 {[%emt 0:00:06]} Rb6 {[%emt 0:00:06]} 56. Bd3 {
[%emt 0:00:06]} g6 {[%emt 0:00:05]} 57. g3 {[%emt 0:00:06]} h5 {[%emt 0:00:04]}
58. Kf2 {[%emt 0:00:06]} Nd5 {[%emt 0:00:10]} 59. Be4 {[%emt 0:00:07]} Ne7 {
[%emt 0:00:16]} 60. Bc2 {[%emt 0:00:07]} Kh6 {[%emt 0:00:02]} 61. h4 {[%emt 0:
00:06]} f6 {[%emt 0:00:03]} 62. Nf4 {[%emt 0:00:08]} g5 {[%emt 0:00:02]} 63.
hxg5+ {[%emt 0:00:05]} fxg5 {[%emt 0:00:02]} 64. Nh3 {[%emt 0:00:04]} Rb2 {
[%emt 0:00:04]} 65. Kf3 {[%emt 0:00:09]} Rxc2 {[%emt 0:00:02]} 66. g4 {[%emt 0:
00:05]} hxg4+ {[%emt 0:00:02]} 67. Kxg4 {[%emt 0:00:02]} Rc4+ {[%emt 0:00:04]}
68. Kg3 {[%emt 0:00:05]} Rh4 {[%emt 0:00:04]} 69. Nf2 {[%emt 0:00:09]} Nf5+ {
[%emt 0:00:03]} 70. Kf3 {[%emt 0:00:04]} Nd4+ {[%emt 0:00:03]} 71. Kg3 {
[%emt 0:00:21]} Kh5 {[%emt 0:00:06]} 72. Nd3 {[%emt 0:00:08]} g4 {[%emt 0:00:
06]} 73. Nf4+ {[%emt 0:00:03]} Kg5 {[%emt 0:00:06]} 74. Nd5 {[%emt 0:00:09]}
Rh3+ {[%emt 0:00:05]} 75. Kg2 {[%emt 0:00:03]} Kh4 {[%emt 0:00:01]} 76. Ne3 {
[%emt 0:00:04]} Rxe3 {[%emt 0:00:04]} 77. Kf2 {[%emt 0:00:05]} Ra3 {[%emt 0:00:
08]} 78. Kg2 {[%emt 0:00:03]} g3 {[%emt 0:00:03]} 79. Kg1 {[%emt 0:00:03]} Ra2
{[%emt 0:00:02]} 80. Kh1 {[%emt 0:00:03]} g2+ {[%emt 0:00:11]} 81. Kg1 {
[%emt 0:00:03]} Ne6 {[%emt 0:00:02]} 82. Kh2 {[%emt 0:00:03]} g1=Q+ {[%emt 0:
00:06]} 83. Kxg1 {[%emt 0:00:01]} Kg3 {[%emt 0:00:02]} 84. Kh1 {[%emt 0:00:03]}
Nd8 {[%emt 0:00:04]} 85. Kg1 {[%emt 0:00:03]} Ra1# {[%emt 0:00:01]
OnlyHungryKiwi won by checkmate} 0-1

[Event "Fast Chess"]
[Site "ChessKid.com"]
[Date "2020.03.27"]
[Round "2"]
[White "Li, Tobias"]
[Black "Sasse, Gabriel"]
[Result "1-0"]
[ECO "D20"]
[WhiteElo "1181"]
[BlackElo "1164"]
[PlyCount "57"]
[EventDate "2020.??.??"]
[TimeControl "900"]
[WhiteClock "0:11:27"]
[BlackClock "0:11:00"]

1. d4 {[%emt 0:00:01]} d5 {[%emt 0:00:05]} 2. c4 {[%emt 0:00:06]} dxc4 {
[%emt 0:00:02]} 3. e3 {[%emt 0:00:03]} Nc6 {[%emt 0:00:08]} 4. Bxc4 {[%emt 0:
00:06]} Be6 {[%emt 0:00:06]} 5. Bd3 {[%emt 0:00:11]} Qd6 {[%emt 0:00:05]} 6.
Nc3 {[%emt 0:00:08]} O-O-O {[%emt 0:00:09]} 7. Be4 {[%emt 0:00:03]} Nf6 {
[%emt 0:00:14]} 8. Nf3 {[%emt 0:00:24]} Nxe4 {[%emt 0:00:03]} 9. Nxe4 {[%emt 0:
00:03]} Bf5 {[%emt 0:00:09]} 10. Nxd6+ {[%emt 0:00:14]} Rxd6 {[%emt 0:00:06]}
11. O-O {[%emt 0:00:11]} Rg6 {[%emt 0:00:07]} 12. Nh4 {[%emt 0:00:15]} Bg4 {
[%emt 0:00:07]} 13. Qa4 {[%emt 0:00:23]} Rg5 {[%emt 0:00:10]} 14. e4 {[%emt 0:
00:07]} Be2 {[%emt 0:00:07]} 15. Bxg5 {[%emt 0:00:07]} Bxf1 {[%emt 0:00:05]}
16. Rxf1 {[%emt 0:00:03]} f6 {[%emt 0:00:05]} 17. Bd2 {[%emt 0:00:10]} g5 {
[%emt 0:00:12]} 18. Nf3 {[%emt 0:00:04]} Bh6 {[%emt 0:00:10]} 19. h3 {[%emt 0:
00:09]} e5 {[%emt 0:00:09]} 20. dxe5 {[%emt 0:00:05]} fxe5 {[%emt 0:00:02]} 21.
Nxe5 {[%emt 0:00:24]} Nxe5 {[%emt 0:00:02]} 22. Qxa7 {[%emt 0:00:03]} Kd7 {
[%emt 0:00:06]} 23. Qxb7 {[%emt 0:00:05]} Nc4 {[%emt 0:00:27]} 24. Qb5+ {
[%emt 0:00:09]} Kd8 {[%emt 0:00:09]} 25. Qxc4 {[%emt 0:00:03]} Re8 {[%emt 0:00:
05]} 26. Qc6 {[%emt 0:00:10]} Bf8 {[%emt 0:00:08]} 27. Ba5 {[%emt 0:00:06]} Re7
{[%emt 0:00:08]} 28. Rd1+ {[%emt 0:00:07]} Kc8 {[%emt 0:00:07]} 29. Qa8# {
[%emt 0:00:02] OnlyHungryKiwi won by checkmate} 1-0

[Event "Fast Chess"]
[Site "ChessKid.com"]
[Date "2020.03.27"]
[Round "2"]
[White "Horvath, Alexander"]
[Black "Georgiev, Maximilian"]
[Result "1-0"]
[ECO "C55"]
[WhiteElo "1336"]
[BlackElo "1201"]
[PlyCount "117"]
[EventDate "2020.??.??"]
[TimeControl "900"]
[WhiteClock "0:05:52"]
[BlackClock "0:05:14"]

1. e4 {[%emt 0:00:00]} e5 {[%emt 0:00:02]} 2. Nf3 {[%emt 0:00:02]} Nc6 {
[%emt 0:00:02]} 3. Bc4 {[%emt 0:00:03]} h6 {[%emt 0:00:07]} 4. Nc3 {[%emt 0:00:
02]} Nf6 {[%emt 0:00:03]} 5. d3 {[%emt 0:00:03]} Bb4 {[%emt 0:00:02]} 6. O-O {
[%emt 0:00:09]} O-O {[%emt 0:00:10]} 7. Nd5 {[%emt 0:00:35]} Nxd5 {[%emt 0:00:
03]} 8. exd5 {[%emt 0:00:02]} Ne7 {[%emt 0:00:05]} 9. Nxe5 {[%emt 0:00:07]} d6
{[%emt 0:00:03]} 10. Nf3 {[%emt 0:00:18]} Bd7 {[%emt 0:00:09]} 11. c3 {[%emt 0:
00:02]} Bc5 {[%emt 0:00:04]} 12. d4 {[%emt 0:00:04]} Bb6 {[%emt 0:00:02]} 13.
Qc2 {[%emt 0:00:17]} Bf5 {[%emt 0:00:10]} 14. Bd3 {[%emt 0:00:04]} Bxd3 {
[%emt 0:00:04]} 15. Qxd3 {[%emt 0:00:01]} Ng6 {[%emt 0:00:08]} 16. Be3 {
[%emt 0:00:29]} Re8 {[%emt 0:00:13]} 17. Rfe1 {[%emt 0:00:10]} Qd7 {[%emt 0:00:
19]} 18. b3 {[%emt 0:00:27]} Rad8 {[%emt 0:00:09]} 19. c4 {[%emt 0:00:05]} Ba5
{[%emt 0:00:08]} 20. Nd2 {[%emt 0:00:14]} Bxd2 {[%emt 0:00:12]} 21. Bxd2 {
[%emt 0:00:05]} Rf8 {[%emt 0:00:08]} 22. Re2 {[%emt 0:00:38]} Qc8 {[%emt 0:00:
51]} 23. Qg3 {[%emt 0:00:23]} b6 {[%emt 0:00:16]} 24. h4 {[%emt 0:00:02]} h5 {
[%emt 0:00:11]} 25. Qg5 {[%emt 0:00:32]} a5 {[%emt 0:01:01]} 26. Qxh5 {[%emt 0:
00:05]} Rde8 {[%emt 0:00:19]} 27. Rxe8 {[%emt 0:00:07]} Rxe8 {[%emt 0:00:02]}
28. Qg5 {[%emt 0:00:25]} Nf8 {[%emt 0:00:17]} 29. Qg3 {[%emt 0:00:12]} Re2 {
[%emt 0:00:06]} 30. Bh6 {[%emt 0:00:05]} Ng6 {[%emt 0:00:29]} 31. Be3 {[%emt 0:
00:18]} Qe8 {[%emt 0:00:25]} 32. h5 {[%emt 0:00:05]} Nh8 {[%emt 0:00:09]} 33.
h6 {[%emt 0:00:09]} Ng6 {[%emt 0:00:09]} 34. hxg7 {[%emt 0:00:17]} Kxg7 {
[%emt 0:00:03]} 35. Qh3 {[%emt 0:00:15]} Qh8 {[%emt 0:00:23]} 36. Qf3 {[%emt 0:
00:20]} Rc2 {[%emt 0:00:06]} 37. Qe4 {[%emt 0:00:14]} Re2 {[%emt 0:00:05]} 38.
Bh6+ {[%emt 0:00:09]} Qxh6 {[%emt 0:00:14]} 39. Qxe2 {[%emt 0:00:03]} Nf4 {
[%emt 0:00:04]} 40. Qg4+ {[%emt 0:00:09]} Ng6 {[%emt 0:00:09]} 41. Re1 {
[%emt 0:00:11]} Kh7 {[%emt 0:00:11]} 42. Qf5 {[%emt 0:00:13]} Kg7 {[%emt 0:00:
08]} 43. Qd7 {[%emt 0:00:08]} Nf8 {[%emt 0:00:04]} 44. Qxc7 {[%emt 0:00:05]}
Qd2 {[%emt 0:00:08]} 45. Re7 {[%emt 0:00:24]} Qd1+ {[%emt 0:00:04]} 46. Kh2 {
[%emt 0:00:03]} Qh5+ {[%emt 0:00:03]} 47. Kg1 {[%emt 0:00:03]} Qd1+ {[%emt 0:
00:02]} 48. Kh2 {[%emt 0:00:01]} Qh5+ {[%emt 0:00:02]} 49. Kg3 {[%emt 0:00:01]}
Qg5+ {[%emt 0:00:04]} 50. Kf3 {[%emt 0:00:01]} Qf5+ {[%emt 0:00:02]} 51. Ke2 {
[%emt 0:00:04]} Qg4+ {[%emt 0:00:04]} 52. Kf1 {[%emt 0:00:13]} Qd1+ {[%emt 0:
00:03]} 53. Re1 {[%emt 0:00:02]} Qd3+ {[%emt 0:00:02]} 54. Re2 {[%emt 0:00:03]}
Qd1+ {[%emt 0:00:01]} 55. Re1 {[%emt 0:00:01]} Qd3+ {[%emt 0:00:02]} 56. Kg1 {
[%emt 0:00:02]} Qxd4 {[%emt 0:00:03]} 57. Qxd6 {[%emt 0:00:09]} Qc3 {[%emt 0:
00:12]} 58. Qe5+ {[%emt 0:00:11]} Kg8 {[%emt 0:00:12]} 59. Qxc3 {[%emt 0:00:03]
KeenOrangeTeeth won by resignation} 1-0